fUSD/lending_fUSD_20250823
["ID","MTS","AMOUNT","RATE_DAILY","PERIOD"]
[381043832,1755970248150,-262.137051,0.00019492,2]
[381043833,1755970248159,-151.0,0.00019492,2]
[381043834,1755970248169,-262.137051,0.00019492,2]
[381043835,1755970248178,-151.0,0.00019492,2]
[381043836,1755970248188,-262.137051,0.00019492,2]
[381043837,1755970248197,-151.0,0.00019492,2]
[381043838,1755970248207,-262.137051,0.00019492,2]
[381043839,1755970248216,-211.443587,0.00019492,2]
[381043840,1755970248225,-151.0,0.00019492,2]
[381043841,1755970248235,-151.0,0.00019492,2]
[381043842,1755970248245,-151.0,0.00019492,2]
[381043843,1755970248254,-1027.73,0.00019492,2]
[381043844,1755970248263,-3076.24002,0.00019492,2]
[381043845,1755970248272,-3076.24002,0.00019492,2]
[381043846,1755970248283,-3076.24002,0.00019492,2]
[381043847,1755970248293,-3076.24002,0.00019492,2]
[381043848,1755970248303,-300.0,0.00019492,2]
[381043849,1755970248313,-300.0,0.00019492,2]
[381043850,1755970248323,-300.0,0.00019492,2]
[381043851,1755970248334,-300.0,0.00019492,2]
[381043852,1755970248344,-300.0,0.00019492,2]
[381043853,1755970248355,-371700.0830693,0.00019493,2]
[381043854,1755970248364,-4394.660414,0.00019493,2]
[381043855,1755970248374,-281.166671,0.00019493,2]
[381043856,1755970248383,-151.0,0.00019493,2]
[381043857,1755970248392,-151.0,0.00019493,2]
[381043858,1755970248402,-151.0,0.00019493,2]
[381043859,1755970248411,-263.225607,0.00019493,2]
[381043860,1755970248420,-151.0,0.00019493,2]
[381043861,1755970248429,-151.0,0.00019493,2]
[381043862,1755970248439,-897.43218,0.00019493,2]
[381043863,1755970248448,-391.420127,0.00019493,2]
[381043864,1755970248458,-897.43218,0.00019493,2]
[381043865,1755970248467,-391.420127,0.00019493,2]
[381043866,1755970248477,-897.43218,0.00019493,2]
[381043867,1755970248486,-391.420127,0.00019493,2]
[381043868,1755970248495,-897.43218,0.00019493,2]
[381043869,1755970248505,-213.710715,0.00019493,2]
[381043870,1755970248514,-420.374497,0.00019493,2]
[381043871,1755970248524,-391.420127,0.00019493,2]
[381043872,1755970248533,-213.710715,0.00019493,2]
[381043873,1755970248542,-420.374497,0.00019493,2]
[381043874,1755970248551,-225.915905,0.00019493,2]
[381043875,1755970248561,-213.710715,0.00019493,2]
[381043876,1755970248570,-1117.552111,0.00019493,2]
[381043877,1755970248579,-420.374497,0.00019493,2]
[381043878,1755970248589,-513.711091,0.00019493,2]
[381043879,1755970248598,-225.915905,0.00019493,2]
[381043880,1755970248608,-213.710715,0.00019493,2]
[381043881,1755970248617,-1117.552111,0.00019493,2]
[381043882,1755970248626,-420.374497,0.00019493,2]
[381043883,1755970248636,-513.711091,0.00019493,2]
[381043884,1755970248645,-1117.552111,0.00019493,2]
[381043885,1755970248654,-225.915905,0.00019493,2]
[381043886,1755970248668,-513.711091,0.00019493,2]
[381043887,1755970248677,-1117.552111,0.00019493,2]
[381043888,1755970248687,-513.711091,0.00019493,2]
[381043889,1755970248696,-151.0,0.00019493,2]
[381043890,1755970248706,-225.915905,0.00019493,2]
[381043891,1755970248715,-245.809962,0.00019493,2]
[381043892,1755970248725,-245.809962,0.00019493,2]
[381043893,1755970248734,-245.809962,0.00019493,2]
[381043894,1755970248744,-3703.418039,0.00019493,2]
[381043895,1755970248754,-245.809962,0.00019493,2]
[381043896,1755970248764,-3703.418039,0.00019493,2]
[381043897,1755970248774,-151.0,0.00019493,2]
[381043898,1755970248783,-3703.418039,0.00019493,2]
[381043899,1755970248793,-348.34125,0.00019493,2]
[381043900,1755970248802,-151.0,0.00019493,2]
[381043901,1755970248812,-151.0,0.00019493,2]
[381043902,1755970248821,-3703.418039,0.00019493,2]
[381043903,1755970248830,-348.34125,0.00019493,2]
[381043904,1755970248840,-202.023752,0.00019493,2]
[381043905,1755970248849,-348.34125,0.00019493,2]
[381043906,1755970248859,-2437.113242,0.00019493,2]
[381043907,1755970248868,-348.34125,0.00019493,2]
[381043908,1755970248877,-2437.113242,0.00019493,2]
[381043909,1755970248887,-2437.113242,0.00019493,2]
[381043910,1755970248896,-2437.113242,0.00019493,2]
[381043911,1755970248906,-160.429263,0.00019493,2]
[381043912,1755970248915,-151.0,0.00019493,2]
[381043913,1755970248924,-160.429263,0.00019493,2]
[381043914,1755970248934,-151.0,0.00019493,2]
[381043915,1755970248943,-160.429263,0.00019493,2]
[381043916,1755970248953,-151.0,0.00019493,2]
[381043917,1755970248962,-160.429263,0.00019493,2]
[381043918,1755970248972,-151.0,0.00019493,2]
[381043919,1755970248981,-151.062649,0.00019493,2]
[381043920,1755970248992,-152.622869,0.00019493,2]
[381043921,1755970249001,-7102.28396,0.00019493,2]
[381043922,1755970249010,-152.622869,0.00019493,2]
[381043923,1755970249020,-7102.28396,0.00019493,2]
[381043924,1755970249029,-152.622869,0.00019493,2]
[381043925,1755970249038,-7102.28396,0.00019493,2]
[381043926,1755970249047,-152.622869,0.00019493,2]
[381043927,1755970249057,-7102.28396,0.00019493,2]
[381043928,1755970249066,-151.0,0.00019493,2]
[381043929,1755970249076,-300.0,0.00019494,2]
[381043930,1755970249086,-300.0,0.00019494,2]
[381043931,1755970249095,-300.0,0.00019494,2]
[381043932,1755970249104,-300.0,0.00019494,2]
[381043933,1755970249114,-214.34983244,0.00019494,2]
[381043934,1755970249123,-300.0,0.00019494,2]
[381043935,1755970249133,-200.0,0.00019495,2]
[381043936,1755970249142,-276.86276304,0.00019495,2]
[381043937,1755970249151,-151.0,0.00019495,2]
[381043938,1755970249161,-200.0,0.00019495,2]
[381043939,1755970249170,-200.0,0.00019495,2]
[381043940,1755970249181,-151.0,0.00019495,2]
[381043941,1755970249190,-151.0,0.00019495,2]
[381043942,1755970249199,-293.830811,0.00019495,2]
[381043943,1755970249209,-3370.103113,0.00019495,2]
[381043944,1755970249218,-1685.307393,0.00019495,2]
[381043945,1755970249228,-3370.103113,0.00019495,2]
[381043946,1755970249237,-151.0,0.00019495,2]
[381043947,1755970249246,-3370.103113,0.00019495,2]
[381043948,1755970249256,-151.0,0.00019495,2]
[381043949,1755970249265,-1929.991853,0.00019495,2]
[381043950,1755970249275,-3370.103113,0.00019495,2]
[381043951,1755970249284,-1685.307393,0.00019495,2]
[381043952,1755970249294,-1929.991853,0.00019495,2]
[381043953,1755970249303,-1685.307393,0.00019495,2]
[381043954,1755970249312,-1929.991853,0.00019495,2]
[381043955,1755970249321,-1685.307393,0.00019495,2]
[381043956,1755970249331,-1929.991853,0.00019495,2]
[381043957,1755970249341,-151.0,0.00019495,2]
[381043958,1755970249350,-151.0,0.00019495,2]
[381043959,1755970249359,-151.0,0.00019495,2]
[381043960,1755970249368,-216.540505,0.00019495,2]
[381043961,1755970249378,-151.0,0.00019495,2]
[381043962,1755970249388,-216.540505,0.00019495,2]
[381043963,1755970249397,-220.434228,0.00019495,2]
[381043964,1755970249407,-174.002456,0.00019495,2]
[381043965,1755970249417,-216.540505,0.00019495,2]
[381043966,1755970249426,-220.434228,0.00019495,2]
[381043967,1755970249435,-216.540505,0.00019495,2]
[381043968,1755970249444,-220.434228,0.00019495,2]
[381043969,1755970249454,-151.0,0.00019495,2]
[381043970,1755970249463,-220.434228,0.00019495,2]
[381043971,1755970249472,-151.0,0.00019495,2]
[381043972,1755970249482,-151.0,0.00019495,2]
[381043973,1755970249491,-151.0,0.00019495,2]
[381043974,1755970249500,-337.604861,0.00019495,2]
[381043975,1755970249510,-151.0,0.00019495,2]
[381043976,1755970249518,-263.068817,0.00019495,2]
[381043977,1755970249527,-337.604861,0.00019495,2]
[381043978,1755970249536,-337.604861,0.00019495,2]
[381043979,1755970249546,-151.0,0.00019495,2]
[381043980,1755970249555,-337.604861,0.00019495,2]
[381043981,1755970249564,-1102.538388,0.00019495,2]
[381043982,1755970249574,-1102.538388,0.00019495,2]
[381043983,1755970249583,-274.216249,0.00019495,2]
[381043984,1755970249592,-181.829332,0.00019495,2]
[381043985,1755970249601,-1102.538388,0.00019495,2]
[381043986,1755970249610,-274.216249,0.00019495,2]
[381043987,1755970249620,-1102.538388,0.00019495,2]
[381043988,1755970249629,-181.829332,0.00019495,2]
[381043989,1755970249639,-274.216249,0.00019495,2]
[381043990,1755970249648,-1690.184719,0.00019495,2]
[381043991,1755970249659,-274.216249,0.00019495,2]
[381043992,1755970249669,-1690.184719,0.00019495,2]
[381043993,1755970249678,-1690.184719,0.00019495,2]
[381043994,1755970249687,-181.829332,0.00019495,2]
[381043995,1755970249696,-151.0,0.00019495,2]
[381043996,1755970249709,-693.713532,0.00019495,2]
[381043997,1755970249720,-1690.184719,0.00019495,2]
[381043998,1755970249730,-181.829332,0.00019495,2]
[381043999,1755970249742,-693.713532,0.00019495,2]
[381044000,1755970249752,-151.0,0.00019495,2]
[381044001,1755970249761,-693.713532,0.00019495,2]
[381044002,1755970249770,-151.0,0.00019495,2]
[381044003,1755970249779,-693.713532,0.00019495,2]
[381044004,1755970249788,-151.0,0.00019495,2]
[381044005,1755970249798,-151.0,0.00019495,2]
[381044006,1755970249807,-151.0,0.00019495,2]
[381044007,1755970249816,-294.511104,0.00019495,2]
[381044008,1755970249826,-151.0,0.00019495,2]
[381044009,1755970249835,-675.800232,0.00019495,2]
[381044010,1755970249844,-675.800232,0.00019495,2]
[381044011,1755970249853,-675.800232,0.00019495,2]
[381044012,1755970249862,-151.0,0.00019495,2]
[381044013,1755970249871,-675.800232,0.00019495,2]
[381044014,1755970249880,-151.0,0.00019495,2]
[381044015,1755970249890,-909.714226,0.00019495,2]
[381044016,1755970249900,-909.714226,0.00019495,2]
[381044017,1755970249909,-365.273815,0.00019495,2]
[381044018,1755970249918,-151.0,0.00019495,2]
[381044019,1755970249927,-909.714226,0.00019495,2]
[381044020,1755970249935,-365.273815,0.00019495,2]
[381044021,1755970249945,-151.0,0.00019495,2]
[381044022,1755970249954,-275.953774,0.00019495,2]
[381044023,1755970249963,-909.714226,0.00019495,2]
[381044024,1755970249972,-151.0,0.00019495,2]
[381044025,1755970249981,-365.273815,0.00019495,2]
[381044026,1755970249992,-163.429439,0.00019495,2]
[381044027,1755970250001,-365.273815,0.00019495,2]
[381044028,1755970250010,-897.43218,0.00019495,2]
[381044029,1755970250019,-391.420127,0.00019495,2]
[381044030,1755970250029,-897.43218,0.00019495,2]
[381044031,1755970250038,-151.0,0.00019495,2]
[381044032,1755970250047,-391.420127,0.00019495,2]
[381044033,1755970250056,-897.43218,0.00019495,2]
[381044034,1755970250065,-897.43218,0.00019495,2]
[381044035,1755970250075,-391.420127,0.00019495,2]
[381044036,1755970250085,-213.710715,0.00019495,2]
[381044037,1755970250094,-420.374497,0.00019495,2]
[381044038,1755970250104,-391.420127,0.00019495,2]
[381044039,1755970250113,-213.710715,0.00019495,2]
[381044040,1755970250122,-420.374497,0.00019495,2]
[381044041,1755970250132,-213.710715,0.00019495,2]
[381044042,1755970250141,-225.915905,0.00019495,2]
[381044043,1755970250150,-1117.552111,0.00019495,2]
[381044044,1755970250159,-420.374497,0.00019495,2]
[381044045,1755970250169,-513.711091,0.00019495,2]
[381044046,1755970250178,-225.915905,0.00019495,2]
[381044047,1755970250187,-213.710715,0.00019495,2]
[381044048,1755970250196,-1117.552111,0.00019495,2]
[381044049,1755970250205,-420.374497,0.00019495,2]
[381044050,1755970250214,-513.711091,0.00019495,2]
[381044051,1755970250223,-1117.552111,0.00019495,2]
[381044052,1755970250232,-225.915905,0.00019495,2]
[381044053,1755970250242,-513.711091,0.00019495,2]
[381044054,1755970250252,-1117.552111,0.00019495,2]
[381044055,1755970250261,-513.711091,0.00019495,2]
[381044056,1755970250270,-151.0,0.00019495,2]
[381044057,1755970250279,-171.14727462,0.00019495,2]
[381044058,1755970250288,-269.551077,0.00019495,2]
[381044059,1755970250298,-225.915905,0.00019495,2]
[381044060,1755970250308,-245.809962,0.00019495,2]
[381044061,1755970250317,-245.809962,0.00019495,2]
[381044062,1755970250327,-245.809962,0.00019495,2]
[381044063,1755970250337,-3703.418039,0.00019495,2]
[381044064,1755970250346,-245.809962,0.00019495,2]
[381044065,1755970250355,-3703.418039,0.00019495,2]
[381044066,1755970250364,-151.0,0.00019495,2]
[381044067,1755970250373,-3703.418039,0.00019495,2]
[381044068,1755970250383,-348.34125,0.00019495,2]
[381044069,1755970250392,-151.0,0.00019495,2]
[381044070,1755970250401,-151.0,0.00019495,2]
[381044071,1755970250410,-3703.418039,0.00019495,2]
[381044072,1755970250420,-348.34125,0.00019495,2]
[381044073,1755970250429,-151.0,0.00019495,2]
[381044074,1755970250438,-348.34125,0.00019495,2]
[381044075,1755970250447,-2437.113242,0.00019495,2]
[381044076,1755970250456,-348.34125,0.00019495,2]
[381044077,1755970250466,-2437.113242,0.00019495,2]
[381044078,1755970250475,-2437.113242,0.00019495,2]
[381044079,1755970250485,-2437.113242,0.00019495,2]
[381044080,1755970250494,-629.986997,0.00019495,2]
[381044081,1755970250514,-151.0,0.00019495,2]
[381044082,1755970250525,-629.986997,0.00019495,2]
[381044083,1755970250535,-348.219084,0.00019495,2]
[381044084,1755970250544,-629.986997,0.00019495,2]
[381044085,1755970250554,-348.219084,0.00019495,2]
[381044086,1755970250563,-160.429263,0.00019495,2]
[381044087,1755970250573,-629.986997,0.00019495,2]
[381044088,1755970250583,-348.219084,0.00019495,2]
[381044089,1755970250592,-151.0,0.00019495,2]
[381044090,1755970250602,-2840.665347,0.00019495,2]
[381044091,1755970250611,-160.429263,0.00019495,2]
[381044092,1755970250620,-225.74452,0.00019495,2]
[381044093,1755970250630,-348.219084,0.00019495,2]
[381044094,1755970250639,-151.0,0.00019495,2]
[381044095,1755970250648,-2840.665347,0.00019495,2]
[381044096,1755970250658,-160.429263,0.00019495,2]
[381044097,1755970250669,-225.74452,0.00019495,2]
[381044098,1755970250679,-156.015874,0.00019495,2]
[381044099,1755970250688,-2840.665347,0.00019495,2]
[381044100,1755970250698,-225.74452,0.00019495,2]
[381044101,1755970250709,-670.055582,0.00019495,2]
[381044102,1755970250719,-160.429263,0.00019495,2]
[381044103,1755970250728,-2840.665347,0.00019495,2]
[381044104,1755970250740,-225.74452,0.00019495,2]
[381044105,1755970250749,-670.055582,0.00019495,2]
[381044106,1755970250759,-1345.644551,0.00019495,2]
[381044107,1755970250769,-670.055582,0.00019495,2]
[381044108,1755970250779,-1345.644551,0.00019495,2]
[381044109,1755970250789,-670.055582,0.00019495,2]
[381044110,1755970250798,-1345.644551,0.00019495,2]
[381044111,1755970250808,-222.926673,0.00019495,2]
[381044112,1755970250818,-1345.644551,0.00019495,2]
[381044113,1755970250828,-222.926673,0.00019495,2]
[381044114,1755970250838,-417.273906,0.00019495,2]
[381044115,1755970250848,-222.926673,0.00019495,2]
[381044116,1755970250858,-417.273906,0.00019495,2]
[381044117,1755970250867,-222.926673,0.00019495,2]
[381044118,1755970250882,-417.273906,0.00019495,2]
[381044119,1755970250891,-417.273906,0.00019495,2]
[381044120,1755970250901,-151.0,0.00019495,2]
[381044121,1755970250911,-151.0,0.00019495,2]
[381044122,1755970250920,-151.0,0.00019495,2]
[381044123,1755970250930,-151.0,0.00019495,2]
[381044124,1755970250940,-262.137051,0.00019495,2]
[381044125,1755970250950,-151.0,0.00019495,2]
[381044126,1755970250962,-262.137051,0.00019495,2]
[381044127,1755970250972,-151.0,0.00019495,2]
[381044128,1755970250982,-262.137051,0.00019495,2]
[381044129,1755970250992,-262.137051,0.00019495,2]
[381044130,1755970251002,-151.0,0.00019495,2]
[381044131,1755970251012,-151.0,0.00019495,2]
[381044132,1755970251023,-151.0,0.00019495,2]
[381044133,1755970251033,-200.0,0.00019495,2]
[381044134,1755970251043,-151.0,0.00019495,2]
[381044135,1755970251054,-152.622869,0.00019495,2]
[381044136,1755970251065,-7102.28396,0.00019495,2]
[381044137,1755970251075,-152.622869,0.00019495,2]
[381044138,1755970251085,-3076.24002,0.00019495,2]
[381044139,1755970251095,-7102.28396,0.00019495,2]
[381044140,1755970251105,-152.622869,0.00019495,2]
[381044141,1755970251115,-3076.24002,0.00019495,2]
[381044142,1755970251125,-7102.28396,0.00019495,2]
[381044143,1755970251136,-152.622877,0.00019495,2]
[381044144,1755970251147,-7102.283952,0.00019495,2]
[381044145,1755970251157,-151.0,0.00019495,2]
[381044146,1755970251167,-3076.24002,0.00019495,2]
[381044147,1755970251176,-619754.96080409,0.00019495,2]
[381044148,1755970251187,-652.04673892,0.00019495,2]
[381044149,1755970251197,-2000.0,0.000195,2]
[381044150,1755970251208,-380.0,0.000195,2]
[381044151,1755970251221,-778.0,0.000195,2]
[381044152,1755970251232,-240.0,0.000195,2]
[381044153,1755970251245,-2500.0,0.00019508,2]
[381044154,1755970251256,-2500.0,0.00019508,2]
[381044155,1755970251271,-189.0,0.0001958,2]
[381044156,1755970251283,-161.03,0.00019595,2]
[381044157,1755970251294,-300.0,0.00019599,2]
[381044158,1755970251305,-190364.68,0.000196,2]
[381044159,1755970251316,-1655.0,0.00019604,2]
[381044160,1755970251327,-649.0,0.00019655,2]
[381044161,1755970251338,-1655.0,0.00019683,2]
[381044162,1755970251350,-200.0,0.0001969,2]
[381044163,1755970251361,-200.0,0.0001969,2]
[381044164,1755970251371,-200.0,0.0001969,2]
[381044165,1755970251383,-200.0,0.0001969,2]
[381044166,1755970251394,-7905.8,0.000197,2]
[381044167,1755970251405,-33746.34,0.000197,2]
[381044168,1755970251417,-500.0,0.00019726,2]
[381044169,1755970251427,-156.587,0.00019726,2]
[381044170,1755970251439,-1655.0,0.00019764,2]
[381044171,1755970251449,-1655.0,0.00019789,2]
[381044172,1755970251460,-212.0,0.000198,2]
[381044173,1755970251471,-1655.0,0.00019825,2]
[381044174,1755970251482,-150.0,0.00019843,2]
[381044175,1755970251494,-150.0,0.00019854,2]
[381044176,1755970251505,-200.0,0.00019854,2]
[381044177,1755970251516,-150.0,0.00019854,2]
[381044178,1755970251527,-150.0,0.00019854,2]
[381044179,1755970251538,-200.0,0.00019854,2]
[381044180,1755970251550,-150.0,0.00019854,2]
[381044181,1755970251561,-150.0,0.00019854,2]
[381044182,1755970251572,-300.0,0.00019854,2]
[381044183,1755970251583,-150.0,0.00019854,2]
[381044184,1755970251594,-150.0,0.00019854,2]
[381044185,1755970251605,-500.0,0.00019854,2]
[381044186,1755970251617,-150.0,0.00019854,2]
[381044187,1755970251628,-150.0,0.00019854,2]
[381044188,1755970251639,-150.0,0.00019854,2]
[381044189,1755970251650,-500.0,0.00019854,2]
[381044190,1755970251666,-150.0,0.00019854,2]
[381044191,1755970251681,-500.0,0.00019854,2]
[381044192,1755970251692,-500.0,0.00019854,2]
[381044193,1755970251703,-150.0,0.00019854,2]
[381044194,1755970251714,-213.16,0.00019854,2]
[381044195,1755970251725,-500.0,0.00019854,2]
[381044196,1755970251739,-500.0,0.00019854,2]
[381044197,1755970251751,-985.0,0.00019854,2]
[381044198,1755970251762,-216.77420714,0.00019854,2]
[381044199,1755970251773,-500.0,0.00019854,2]
[381044200,1755970251784,-619.0,0.00019854,2]
[381044201,1755970251795,-450.63,0.00019863,2]
[381044202,1755970251807,-168.0,0.00019864,2]
[381044203,1755970251818,-150.0,0.00019867,2]
[381044204,1755970251831,-329.84427808,0.00019868,2]
[381044205,1755970251842,-420.38976619,0.00019869,2]
[381044206,1755970251854,-800.0,0.0001987,2]
[381044207,1755970251865,-510.93525429,0.00019871,2]
[381044208,1755970251877,-601.48074239,0.00019872,2]
[381044209,1755970251888,-692.02623049,0.00019873,2]
[381044210,1755970251900,-782.57171859,0.00019874,2]
[381044211,1755970251913,-873.11720669,0.00019875,2]
[381044212,1755970251925,-963.6626948,0.00019876,2]
[381044213,1755970251937,-1054.2081829,0.00019877,2]
[381044214,1755970251949,-1013.11,0.00019877,2]
[381044215,1755970251961,-168.0,0.00019886,2]
[381044216,1755970251972,-499.0259211,0.00019887,2]
[381044217,1755970251982,-200.0,0.00019887,2]
[381044218,1755970251993,-200.0,0.00019887,2]
[381044219,1755970252004,-200.0,0.00019887,2]
[381044220,1755970252015,-167949.74154913,0.00019888,2]
[381044221,1755970253492,-473.12787051,0.00019888,2]
[381044222,1755970253505,-1170.4999999,0.00019888,2]
[381044223,1755970254613,-151.0,0.000166,2]
[381044224,1755970254624,-151.0,0.00018,2]
[381044225,1755970254634,-151.0,0.00018,2]
[381044226,1755970254644,-3076.24002,0.00019495,2]
[381044227,1755970254655,-905664.54285102,0.00019888,2]
[381044228,1755970254670,-294.8101767,0.00019888,2]
[381044229,1755970254683,-170602.49999995,0.00019888,2]
[381044230,1755970254709,-5334.86284394,0.00019888,2]
[381044231,1755970254867,-504.07458396,0.00019888,2]
[381044232,1755970256171,-151.0,0.000166,2]
[381044233,1755970256181,-151.0,0.000166,2]
[381044234,1755970256191,-151.0,0.000166,2]
[381044235,1755970256201,-3373.0,0.00017507,2]
[381044236,1755970256211,-151.0,0.00018,2]
[381044237,1755970256220,-151.0,0.00018,2]
[381044238,1755970256230,-151.0,0.00018,2]
[381044239,1755970256240,-151.0,0.00019493,2]
[381044240,1755970256250,-151.0,0.00019493,2]
[381044241,1755970256260,-209.878189,0.00019495,2]
[381044242,1755970256270,-151.0,0.00019495,2]
[381044243,1755970256280,-37594.89556789,0.00019888,2]
[381044244,1755970256289,-390.8615783,0.0001989,2]
[381044245,1755970256299,-2671.9715516,0.0001989,2]
[381044246,1755970256308,-900.0,0.00019895,2]
[381044247,1755970256318,-900.0,0.00019895,2]
[381044248,1755970256328,-900.0,0.00019895,2]
[381044249,1755970256339,-900.0,0.00019895,2]
[381044250,1755970256348,-900.0,0.00019895,2]
[381044251,1755970256358,-900.0,0.00019895,2]
[381044252,1755970256369,-900.0,0.00019895,2]
[381044253,1755970256379,-900.0,0.00019895,2]
[381044254,1755970256389,-300.0,0.00019899,2]
[381044255,1755970256402,-2000.0,0.00019899,2]
[381044256,1755970256412,-2000.0,0.00019899,2]
[381044257,1755970256422,-2000.0,0.00019899,2]
[381044258,1755970256436,-3044.01868717,0.000199,3]
[381044259,1755970256446,-212.10093811,0.000199,3]
[381044260,1755970256455,-2383.1905,0.000199,2]
[381044261,1755970256466,-1947.4548,0.000199,2]
[381044262,1755970256476,-1027.4585,0.000199,2]
[381044263,1755970256485,-207.0,0.00019901,2]
[381044264,1755970256495,-150.0,0.00019904,2]
[381044265,1755970256505,-150.0,0.00019904,2]
[381044266,1755970256515,-1208.29,0.00019904,2]
[381044267,1755970256524,-539.5,0.00019904,2]
[381044268,1755970256534,-408.48,0.00019904,2]
[381044269,1755970256545,-408.48,0.00019904,2]
[381044270,1755970256555,-592.61,0.00019904,2]
[381044271,1755970256565,-334.5472959,0.00019916,2]
[381044272,1755970256575,-287.61899177,0.00019916,2]
[381044273,1755970256585,-1655.0,0.00019934,2]
[381044274,1755970256595,-1655.0,0.00019941,2]
[381044275,1755970256605,-1000.0,0.00019943,2]
[381044276,1755970256614,-2000.0,0.00019949,2]
[381044277,1755970256624,-300.0,0.00019949,2]
[381044278,1755970256634,-300.0,0.00019949,2]
[381044279,1755970256644,-263211.92450208,0.0001995,15]
[381044280,1755970256657,-8439.29618145,0.0001995,15]
[381044281,1755970256673,-905.7299986,0.0001995,15]
[381044282,1755970256716,-151.0,0.00018,2]
[381044283,1755970256727,-3612.73447997,0.0001995,15]
[381044349,1755970492057,2000.0,0.00028767,120]
[381044357,1755970504212,3000.0,0.00028767,120]
[381044363,1755970514747,3000.0,0.00028767,120]
[381044372,1755970527145,3000.0,0.00028767,120]
[381044373,1755970539708,2000.0,0.00028767,120]
[381044375,1755970553606,1537.48,0.00028767,120]
[381044387,1755970695515,288.0,0.00028767,120]
[381044403,1755970930254,187.88,0.00026516,120]
[381044462,1755971432546,-664.06530526,0.00013692,2]
[381044463,1755971432557,-535.93469474,0.00013692,2]
[381044464,1755971432567,-228.86703952,0.00013693,2]
[381044465,1755971432578,-271.13296048,0.00013693,2]
[381044466,1755971432588,-250.0,0.00013693,2]
[381044467,1755971432597,-500.0,0.00013693,2]
[381044468,1755971432606,-346.21893957,0.00013693,2]
[381044469,1755971432616,-237.07217252,0.00013693,2]
[381044470,1755971432625,-2000.0,0.00013695,3]
[381044471,1755971432634,-300.0,0.00013696,2]
[381044472,1755971432644,-301.29,0.00013697,2]
[381044473,1755971432653,-301.65,0.00013697,2]
[381044474,1755971432662,-303.06,0.00013697,2]
[381044475,1755971432671,-305.26,0.00013697,2]
[381044476,1755971432680,-421.52,0.00013698,2]
[381044477,1755971432690,-418.6,0.00013698,2]
[381044478,1755971432699,-302.11,0.00013698,2]
[381044479,1755971432708,-416.59,0.00013698,2]
[381044480,1755971432717,-425.58,0.00013698,2]
[381044481,1755971432726,-419.6,0.00013698,2]
[381044482,1755971432735,-300.67,0.00013698,2]
[381044483,1755971432744,-428.51,0.00013698,2]
[381044484,1755971432753,-419.84,0.00013698,2]
[381044485,1755971432763,-304.61,0.00013698,2]
[381044486,1755971432772,-430.06,0.00013698,2]
[381044487,1755971432781,-81.31056739,0.00013698,2]
[381044488,1755971432804,-336.56943261,0.00013698,2]
[381044489,1755971432813,-428.22,0.00013698,2]
[381044490,1755971432823,-304.46,0.00013698,2]
[381044491,1755971432832,-331.86199401,0.00013698,2]
[381044492,1755971432843,-91.34800599,0.00013698,2]
[381044493,1755971432852,-303.22,0.00013698,2]
[381044494,1755971432862,-304.27,0.00013698,2]
[381044495,1755971432871,-235.54399401,0.00013698,2]
[381044496,1755971432890,-182.82600599,0.00013698,2]
[381044497,1755971432899,-426.08,0.00013698,2]
[381044498,1755971432908,-417.68,0.00013698,2]
[381044499,1755971432917,-421.06,0.00013698,2]
[381044500,1755971432926,-419.87,0.00013698,2]
[381044501,1755971432935,-303.56,0.00013698,2]